bitfinex/quotes_BTCUSD_20220731
["timestamp","ask_amount","ask_price","bid_price","bid_amount"]
[1659262468969,0.303864,23750.0,23749.0,0.78654702]
[1659262469202,0.40725733,23751.0,23749.0,0.78654702]
[1659262469401,0.43876006,23751.0,23750.0,0.28922442]
[1659262469601,0.39306298,23751.0,23750.0,0.49837936]
[1659262469827,0.39306298,23751.0,23750.0,0.8027554]
[1659262470048,0.49954998,23751.0,23750.0,0.8027554]
[1659262470269,0.49954998,23751.0,23750.0,0.50192031]
[1659262470495,0.54102533,23751.0,23750.0,0.50192031]
[1659262470725,0.49954998,23751.0,23750.0,0.50192031]
[1659262470974,0.56154998,23751.0,23750.0,0.50192031]
[1659262471431,0.56154998,23751.0,23750.0,0.50203157]
[1659262471654,0.56154998,23751.0,23750.0,0.50192031]
[1659262472296,0.49954998,23751.0,23750.0,0.50192031]
[1659262472520,0.53411189,23751.0,23750.0,0.50192031]
[1659262472738,0.49954998,23751.0,23750.0,0.50203157]
[1659262472950,0.49954998,23751.0,23750.0,0.50192031]
[1659262473839,0.56154998,23751.0,23750.0,0.50192031]
[1659262475005,0.62354998,23751.0,23750.0,0.50192031]
[1659262475237,0.56154998,23751.0,23750.0,0.50192031]
[1659262475679,0.60302533,23751.0,23750.0,0.50192031]
[1659262476154,0.54102533,23751.0,23750.0,0.50192031]
[1659262477093,0.60302533,23751.0,23750.0,0.50192031]
[1659262477762,0.56154998,23751.0,23750.0,0.50192031]
[1659262478198,0.49954998,23751.0,23750.0,0.50192031]
[1659262478888,0.50654998,23751.0,23750.0,0.56092031]
[1659262479345,0.54802533,23751.0,23750.0,0.56092031]
[1659262479627,0.50654998,23751.0,23750.0,0.56092031]
[1659262480293,0.49954998,23751.0,23750.0,0.50192031]
[1659262480518,0.54102533,23751.0,23750.0,0.50192031]
[1659262480969,0.54802533,23751.0,23750.0,0.56092031]
[1659262481442,0.50654998,23751.0,23750.0,0.56103157]
[1659262481679,0.50654998,23751.0,23750.0,0.56092031]
[1659262483059,0.55354998,23751.0,23750.0,0.50192031]
[1659262484380,0.49954998,23751.0,23750.0,0.50192031]
[1659262484620,0.49954998,23751.0,23750.0,0.49754427]
[1659262484841,0.99954998,23751.0,23750.0,0.49754427]
[1659262485065,1.56865533,23751.0,23740.0,0.52118714]
[1659262485297,0.40725733,23749.0,23740.0,0.52118714]
[1659262485526,0.40725733,23749.0,23738.0,0.96489056]
[1659262485527,0.05,23747.0,23738.0,0.96489056]
[1659262485749,0.40725733,23746.0,23738.0,0.96489056]
[1659262486253,0.40725733,23747.0,23739.0,0.74257733]
[1659262486486,0.40725733,23747.0,23740.0,0.30369]
[1659262486709,0.40725733,23747.0,23741.0,0.210494]
[1659262486938,0.42725733,23747.0,23741.0,0.32313748]
[1659262487163,0.42836158,23747.0,23741.0,0.32313748]
[1659262487439,0.42836158,23747.0,23742.0,0.31264348]
[1659262487680,0.42836158,23747.0,23742.0,0.36264348]
[1659262488389,0.00110425,23747.0,23743.0,0.01264348]
[1659262488629,0.3,23754.0,23746.0,0.07359433]
[1659262488858,0.40725733,23754.0,23747.0,0.03161]
[1659262489095,0.40725733,23755.0,23747.0,1.03886733]
[1659262490247,0.40725733,23755.0,23748.0,0.20521]
[1659262490487,0.40725733,23755.0,23750.0,0.210416]
[1659262490954,0.42225733,23755.0,23750.0,0.210416]
[1659262491423,0.42225733,23755.0,23750.0,0.260416]
[1659262491648,0.42225733,23755.0,23750.0,0.210416]
[1659262491881,0.0160838,23755.0,23750.0,0.342026]
[1659262492108,0.0160838,23755.0,23754.0,0.07359433]
[1659262492371,0.0010838,23755.0,23754.0,0.07370559]
[1659262493093,0.0250838,23755.0,23754.0,0.14870559]
[1659262494259,0.0010838,23755.0,23754.0,0.07370559]
[1659262494692,0.54284706,23762.0,23757.0,0.07359433]
[1659262494983,0.024,23755.0,23754.0,0.375]
[1659262495664,0.02506373,23755.0,23754.0,0.075]
[1659262496322,0.02506373,23755.0,23754.0,0.00011126]
[1659262496323,0.00106373,23755.0,23754.0,0.00011126]
[1659262497004,0.02506373,23755.0,23754.0,0.07511126]
[1659262498353,0.00106373,23755.0,23754.0,0.00011126]
[1659262498849,0.00106373,23755.0,23753.0,0.00011126]
[1659262499073,0.07306373,23755.0,23754.0,0.07359433]
[1659262499530,0.07306373,23755.0,23754.0,0.07433769]
[1659262499996,0.07082088,23755.0,23754.0,0.07359433]
[1659262500233,0.40725733,23761.0,23754.0,0.07359433]
[1659262500455,0.106487,23760.0,23754.0,0.07359433]
[1659262500674,0.00106373,23755.0,23754.0,0.07359433]
[1659262500903,0.00106373,23755.0,23751.0,0.3]
[1659262501584,0.00106373,23755.0,23751.0,0.6]
[1659262502053,0.00106373,23755.0,23752.0,0.00011126]
[1659262502267,0.40832106,23755.0,23752.0,0.30011126]
[1659262502599,0.40832106,23755.0,23752.0,0.00011126]
[1659262502952,0.43332106,23755.0,23752.0,0.07511126]
[1659262503412,0.47479641,23755.0,23752.0,0.07511126]
[1659262503854,1.06240472,23755.0,23752.0,0.07511126]
[1659262504112,1.06240472,23755.0,23752.0,0.075]
[1659262504113,1.60725733,23753.0,23752.0,0.075]
[1659262504343,1.70725733,23753.0,23744.0,0.0011453]
[1659262504564,0.40725733,23749.0,23744.0,0.0011453]
[1659262504789,0.40725733,23748.0,23744.0,0.0011453]
[1659262505035,0.106487,23747.0,23744.0,0.0011453]
[1659262505274,0.40725733,23746.0,23744.0,0.0011453]
[1659262505493,0.156487,23745.0,23744.0,0.0011453]
[1659262505749,0.106487,23745.0,23744.0,0.04720656]
[1659262505974,0.044,23753.0,23744.0,0.35089656]
[1659262505975,0.38423,23752.0,23744.0,0.35089656]
[1659262506227,0.38423,23752.0,23744.0,0.04690556]
[1659262506228,0.51374433,23751.0,23744.0,0.04690556]
[1659262506499,0.40725733,23750.0,23744.0,0.04690556]
[1659262506963,0.40725733,23750.0,23744.0,0.40790556]
[1659262507183,0.106487,23749.0,23744.0,0.40790556]
[1659262507397,0.40725733,23750.0,23744.0,0.40790556]
[1659262507623,0.106487,23749.0,23744.0,0.40790556]
[1659262507867,0.40725733,23748.0,23744.0,0.36195556]
[1659262508314,0.04147535,23747.0,23744.0,0.0008443]
[1659262508545,0.44873268,23747.0,23744.0,0.0008443]
[1659262508759,0.106487,23746.0,23744.0,0.0008443]
[1659262509021,0.05,23745.0,23744.0,0.0008443]
[1659262509243,0.11336087,23745.0,23744.0,0.0008443]
[1659262509486,0.4141312,23745.0,23744.0,0.0008443]
[1659262509716,0.5206182,23745.0,23744.0,0.0008443]
[1659262511097,0.5496182,23745.0,23744.0,0.0768443]
[1659262512221,0.5206182,23745.0,23744.0,0.0008443]
[1659262512902,0.5796182,23745.0,23744.0,0.0008443]
[1659262513136,0.5796182,23745.0,23744.0,0.00095556]
[1659262513396,0.5796182,23745.0,23744.0,0.0008443]
[1659262514341,0.5206182,23745.0,23744.0,0.0008443]
[1659262515023,0.5306182,23745.0,23744.0,0.0658443]
[1659262516006,0.12336087,23745.0,23744.0,0.0658443]
[1659262516229,0.11336087,23745.0,23744.0,0.00095556]
[1659262516451,0.00687387,23745.0,23744.0,0.04690556]
[1659262516908,0.03487387,23745.0,23744.0,0.12290556]
[1659262517613,0.03487387,23745.0,23744.0,0.0768443]
[1659262518267,0.14136087,23745.0,23744.0,0.0768443]
[1659262518270,0.11336087,23745.0,23744.0,0.0008443]
[1659262518502,0.00687387,23745.0,23744.0,0.00182524]
[1659262518716,0.00687387,23745.0,23744.0,0.0019365]
[1659262518931,0.4421312,23745.0,23744.0,0.0768443]
[1659262519156,0.5486182,23745.0,23744.0,0.0768443]
[1659262519380,0.4421312,23745.0,23744.0,0.07758648]
[1659262519612,0.4421312,23745.0,23744.0,0.07769774]
[1659262519842,0.4421312,23745.0,23744.0,0.07674488]
[1659262520079,0.5486182,23745.0,23744.0,0.07674488]
[1659262520309,0.00687387,23745.0,23744.0,0.00074488]
[1659262520533,0.00687387,23745.0,23744.0,0.00158648]
[1659262520760,0.00687387,23745.0,23744.0,0.00169774]
[1659262521012,0.04087387,23745.0,23744.0,0.07869774]
[1659262521260,0.04087387,23745.0,23744.0,0.63916174]
[1659262521486,0.04087387,23745.0,23744.0,2.08360155]
[1659262521726,0.04087387,23745.0,23744.0,2.16522155]
[1659262522079,0.04087387,23745.0,23744.0,2.10257807]
[1659262522283,0.04087387,23745.0,23744.0,2.12095807]
[1659262522509,0.04087387,23745.0,23744.0,1.82095807]
[1659262522716,0.00687387,23745.0,23744.0,1.74395807]
[1659262523055,0.00687387,23745.0,23744.0,1.85357807]
[1659262524189,0.00687387,23745.0,23744.0,1.77557807]
[1659262524901,0.00687387,23745.0,23744.0,1.85357807]
[1659262525111,0.00687387,23745.0,23744.0,1.77195807]
[1659262525533,0.00687387,23745.0,23744.0,1.834675]
[1659262526008,0.00687387,23745.0,23744.0,1.784675]
[1659262526211,0.00687387,23745.0,23744.0,1.756675]
[1659262526593,0.00687387,23745.0,23744.0,1.29941767]
[1659262526996,0.00687387,23745.0,23744.0,1.42741767]
[1659262527832,0.00687387,23745.0,23744.0,1.37741767]
[1659262528143,0.00687387,23745.0,23744.0,1.34941767]
[1659262528859,0.00687387,23745.0,23744.0,1.42741767]
[1659262529320,0.00687387,23745.0,23744.0,2.03105818]
[1659262529858,0.00687387,23745.0,23744.0,1.98105818]
[1659262530051,0.00687387,23745.0,23744.0,2.03105818]
[1659262530705,0.37090442,23754.0,23744.0,2.03105818]
[1659262530920,0.40725733,23753.0,23745.0,0.6]
[1659262531377,0.40725733,23753.0,23746.0,0.52491006]
[1659262531632,0.106487,23752.0,23747.0,0.3]
[1659262531847,0.40725733,23751.0,23748.0,0.51323631]
[1659262532078,0.106487,23750.0,23749.0,0.00011126]
[1659262532313,0.51374433,23750.0,23748.0,0.51323631]
[1659262532563,0.40725733,23750.0,23748.0,0.51323631]
[1659262532801,0.106487,23749.0,23748.0,0.51323631]
[1659262533010,0.48625733,23750.0,23748.0,0.51323631]
[1659262533226,0.106487,23749.0,23748.0,0.51334757]
[1659262533459,0.48625733,23750.0,23748.0,0.51334757]
[1659262533743,0.106487,23749.0,23748.0,0.51334757]
[1659262533929,0.48625733,23750.0,23748.0,0.51334757]
[1659262534154,0.106487,23749.0,23748.0,0.51334757]
[1659262534376,0.40725733,23750.0,23748.0,0.51334757]
[1659262535134,0.02,23749.0,23748.0,0.58734757]
[1659262535492,0.02,23749.0,23748.0,0.88734757]
[1659262535712,0.02,23749.0,23748.0,0.58734757]
[1659262536087,0.40725733,23750.0,23748.0,0.51334757]
[1659262536288,0.44873268,23750.0,23748.0,0.51323631]
[1659262536504,0.106487,23749.0,23748.0,0.51334757]
[1659262536711,0.106487,23749.0,23748.0,0.51323631]
[1659262537182,0.51374433,23749.0,23748.0,0.51323631]
[1659262537380,0.40725733,23749.0,23748.0,0.57723631]
[1659262537608,0.40725733,23749.0,23748.0,0.57734757]
[1659262537808,0.51374433,23749.0,23748.0,0.57734757]
[1659262537953,0.52065777,23749.0,23748.0,0.57723631]
[1659262538151,0.51374433,23749.0,23748.0,0.57723631]
[1659262538354,0.40725733,23749.0,23748.0,0.57723631]
[1659262538553,0.51374433,23749.0,23748.0,0.51334757]
[1659262538877,0.40725733,23749.0,23748.0,0.51323631]
[1659262539746,0.40725733,23749.0,23748.0,0.51334757]
[1659262541577,0.40725733,23753.0,23748.0,0.81334757]
[1659262541828,0.40725733,23753.0,23749.0,0.510415]
[1659262542021,0.40725733,23753.0,23750.0,0.51482278]
[1659262542235,0.106487,23752.0,23751.0,0.00011126]
[1659262542456,0.51374433,23752.0,23751.0,0.30011126]
[1659262542671,0.40725733,23752.0,23751.0,0.30011126]
[1659262542882,0.51374433,23752.0,23751.0,0.30011126]
[1659262543102,0.40725733,23752.0,23751.0,0.30011126]
[1659262543975,0.42925733,23752.0,23751.0,0.37611126]
[1659262544644,0.53574433,23752.0,23751.0,0.376]
[1659262544869,0.022,23752.0,23751.0,0.376]
[1659262545794,0.58760831,23755.0,23751.0,0.30011126]
[1659262546025,0.40725733,23754.0,23752.0,0.47036816]
[1659262546514,0.106487,23754.0,23753.0,0.3]
[1659262546726,0.58760831,23755.0,23753.0,0.51474637]
[1659262546994,0.58760831,23755.0,23754.0,0.49065267]
[1659262547201,0.58760831,23755.0,23754.0,0.49054141]
[1659262547907,0.66360831,23755.0,23754.0,0.51554141]
[1659262548127,0.66360831,23755.0,23754.0,0.51565267]
[1659262549264,0.58760831,23755.0,23754.0,0.49054141]
[1659262549488,0.57490831,23755.0,23754.0,0.49054141]
[1659262549907,0.65090831,23755.0,23754.0,0.51554141]
[1659262550118,0.75739531,23755.0,23754.0,0.51554141]
[1659262550475,0.75739531,23755.0,23754.0,0.51565267]
[1659262550701,0.65090831,23755.0,23754.0,0.51565267]
[1659262550915,0.75739531,23755.0,23754.0,0.51565267]
[1659262551128,0.68139531,23755.0,23754.0,0.49054141]
[1659262551348,0.57490831,23755.0,23754.0,0.49054141]
[1659262551562,0.57490831,23755.0,23754.0,0.49065267]
[1659262551774,0.65090831,23755.0,23754.0,0.51665267]
[1659262552518,0.65090831,23755.0,23754.0,0.81665267]
[1659262553273,0.57490831,23755.0,23754.0,0.79065267]
[1659262553950,0.57490831,23755.0,23754.0,0.86965267]
[1659262554588,0.42781831,23755.0,23754.0,0.86965267]
[1659262555268,0.42781831,23755.0,23754.0,0.79065267]
[1659262555518,0.42781831,23755.0,23754.0,1.44434267]
[1659262555519,0.36894424,23755.0,23754.0,1.44434267]
[1659262555752,0.36894424,23755.0,23754.0,2.41654048]
[1659262555753,0.30721544,23755.0,23754.0,2.41654048]
[1659262555970,0.30721544,23755.0,23754.0,2.49554048]
[1659262556421,0.24646544,23755.0,23754.0,2.49554048]
[1659262556920,0.24646544,23755.0,23754.0,2.19554048]
[1659262557368,0.24646544,23755.0,23754.0,2.11654048]
[1659262558056,0.24646544,23755.0,23754.0,2.082897]
[1659262558291,0.24646544,23755.0,23754.0,2.032897]
[1659262558512,0.24646544,23755.0,23754.0,1.59402967]
[1659262559219,0.24646544,23755.0,23754.0,1.51502967]
[1659262559715,0.24646544,23755.0,23754.0,1.972287]
[1659262559940,0.24646544,23755.0,23754.0,2.39239563]
[1659262560402,0.24646544,23755.0,23754.0,3.45508228]
[1659262561159,0.24646544,23755.0,23754.0,4.72508228]
[1659262561398,0.24646544,23755.0,23754.0,4.7696471]
[1659262562107,0.24646544,23755.0,23754.0,3.52746182]
[1659262563010,0.24646544,23755.0,23754.0,2.64402967]
[1659262563263,0.24646544,23755.0,23754.0,2.56502967]
[1659262563931,0.24646544,23755.0,23754.0,3.074897]
[1659262564152,0.24646544,23755.0,23754.0,3.443287]
[1659262565342,0.24646544,23755.0,23754.0,3.372287]
[1659262566024,0.24646544,23755.0,23754.0,3.443287]
[1659262566493,0.24646544,23755.0,23754.0,3.393287]
[1659262566733,0.24646544,23755.0,23754.0,2.98602967]
[1659262566968,0.24646544,23755.0,23754.0,3.393287]
[1659262567227,0.24646544,23755.0,23754.0,3.443287]
[1659262567464,0.24646544,23755.0,23754.0,3.77759787]
[1659262567949,0.24646544,23755.0,23754.0,3.78559787]
[1659262568177,0.24646544,23755.0,23754.0,3.83559787]
[1659262569171,0.24646544,23755.0,23754.0,3.75659787]
[1659262570105,0.24646544,23755.0,23754.0,3.80398787]
[1659262570798,0.24646544,23755.0,23754.0,3.80553507]
[1659262571243,0.24646544,23755.0,23754.0,3.72653507]
[1659262571907,0.24646544,23755.0,23754.0,3.75553507]
[1659262572422,0.21578363,23755.0,23754.0,3.78714507]
[1659262572670,0.21578363,23755.0,23754.0,3.75553507]
[1659262573134,1.0749,23767.0,23763.0,0.07359433]
[1659262573135,0.0022,23767.0,23763.0,0.07359433]
[1659262574069,0.0802,23767.0,23763.0,0.07359433]
[1659262574261,0.106487,23766.0,23763.0,0.07359433]
[1659262574490,0.0802,23767.0,23763.0,0.07359433]
[1659262574718,0.0802,23767.0,23762.0,0.260306]
[1659262575005,0.0802,23767.0,23762.0,0.71756333]
[1659262575223,0.0022,23767.0,23766.0,0.07359433]
[1659262575445,0.0022,23767.0,23764.0,0.105143]
[1659262575904,0.0782,23767.0,23766.0,0.033]
[1659262577358,0.0022,23767.0,23765.0,0.56038926]
[1659262577587,0.0022,23767.0,23766.0,0.37728433]
[1659262577787,0.0022,23767.0,23766.0,0.37359433]
[1659262578017,0.0022,23767.0,23766.0,0.079]
[1659262579209,0.0022,23767.0,23765.0,0.51038926]
[1659262579856,0.0022,23767.0,23765.0,0.28938926]
[1659262580219,0.0022,23767.0,23765.0,0.58938926]
[1659262581332,0.0022,23767.0,23765.0,0.21038926]
[1659262581556,0.0022,23767.0,23765.0,0.51038926]
[1659262582023,0.0022,23767.0,23765.0,0.55838926]
[1659262583201,0.0022,23767.0,23765.0,0.21038926]
[1659262583657,0.0022,23767.0,23765.0,0.51038926]
[1659262583910,0.0022,23767.0,23765.0,0.28938926]
[1659262584174,0.0022,23767.0,23765.0,0.58938926]
[1659262584638,0.0022,23767.0,23766.0,0.07359433]
[1659262584872,0.0022,23767.0,23766.0,0.37359433]
[1659262586018,0.0022,23767.0,23766.0,0.45259433]
[1659262586722,0.0022,23767.0,23766.0,0.079]
[1659262587189,0.0022,23767.0,23766.0,0.07911126]
[1659262587860,0.0022,23767.0,23766.0,0.04811126]
[1659262589231,0.0022,23767.0,23766.0,0.048]
[1659262589232,0.57681268,23767.0,23766.0,0.048]
[1659262589444,0.68329968,23767.0,23761.0,0.49703619]
[1659262589665,0.40725733,23766.0,23761.0,0.49703619]
[1659262590116,0.106487,23765.0,23761.0,0.49703619]
[1659262590387,0.40725733,23764.0,23761.0,0.49703619]
[1659262590616,0.03456191,23763.0,23761.0,0.49703619]
[1659262590834,0.44181924,23763.0,23761.0,0.49703619]
[1659262591073,0.40725733,23763.0,23761.0,0.49714745]
[1659262591513,0.40725733,23763.0,23761.0,0.49703619]
[1659262591732,0.44873268,23763.0,23761.0,0.49703619]
[1659262591988,0.51473268,23763.0,23761.0,0.50703619]
[1659262592440,0.47325733,23763.0,23761.0,0.50714745]
[1659262592911,0.47325733,23763.0,23762.0,0.04770484]
[1659262593143,0.47325733,23763.0,23762.0,0.34770484]
[1659262593376,0.40725733,23763.0,23762.0,0.34770484]
[1659262594064,0.40725733,23763.0,23762.0,0.42670484]
[1659262594950,0.40714622,23763.0,23762.0,0.42670484]
[1659262595179,0.40714622,23763.0,23762.0,0.34770484]
[1659262596070,0.40714622,23763.0,23762.0,0.42670484]
[1659262596739,0.40725733,23766.0,23762.0,0.47670484]
[1659262597212,0.40945733,23767.0,23762.0,0.68699984]
[1659262597428,0.40945733,23767.0,23762.0,0.60799984]
[1659262597670,0.40945733,23767.0,23763.0,0.105144]
[1659262597890,0.44945733,23767.0,23764.0,0.00011126]
[1659262598145,0.44945733,23767.0,23764.0,0.00096345]
[1659262599684,0.00099303,23766.0,23764.0,0.30465345]
[1659262599927,0.00099303,23766.0,23765.0,0.3]
[1659262600112,0.00099303,23766.0,23765.0,0.65369]
[1659262600252,0.00099303,23766.0,23765.0,0.3]
[1659262600676,0.00099303,23766.0,23762.0,0.210295]
[1659262600890,0.00099303,23766.0,23763.0,0.3]
[1659262601105,0.00099303,23766.0,23763.0,0.30020165]
[1659262601955,0.00099303,23766.0,23763.0,0.04620165]
[1659262602156,0.00099303,23766.0,23763.0,0.34620165]
[1659262602390,0.00099303,23766.0,23765.0,0.07359433]
[1659262602830,0.00099303,23766.0,23763.0,0.34620165]
[1659262603360,0.00099303,23766.0,23763.0,0.40534665]
[1659262604012,0.00099303,23766.0,23763.0,0.48434665]
[1659262605166,0.00099303,23766.0,23763.0,0.405145]
[1659262605388,0.00099303,23766.0,23763.0,0.40525626]
[1659262605899,0.07999303,23766.0,23763.0,0.40525626]
[1659262607279,0.00099303,23766.0,23763.0,0.40525626]
[1659262607958,0.00099303,23766.0,23763.0,0.48425626]
[1659262608384,0.55202427,23765.0,23763.0,0.48425626]
[1659262608627,0.58658618,23765.0,23763.0,0.48425626]
[1659262608860,0.55202427,23765.0,23763.0,0.48425626]
[1659262609319,0.55202427,23765.0,23763.0,0.40525626]
[1659262609999,0.55202427,23765.0,23763.0,0.48425626]
[1659262610475,0.55202427,23765.0,23763.0,0.53425626]
[1659262610713,0.55202427,23765.0,23763.0,0.48425626]
[1659262611262,0.55202427,23765.0,23763.0,0.40525626]
[1659262611498,0.55202427,23765.0,23764.0,0.30369]
[1659262611738,0.55202427,23765.0,23764.0,0.3]
[1659262612413,0.55202427,23765.0,23764.0,0.60369]
[1659262612649,0.55202427,23765.0,23764.0,0.3]
[1659262612895,0.55202427,23765.0,23764.0,0.30369]
[1659262613340,0.55202427,23765.0,23764.0,0.3]
[1659262613553,0.55202427,23765.0,23764.0,0.35]
[1659262613781,0.55202427,23765.0,23764.0,0.60369]
[1659262614007,0.55202427,23765.0,23764.0,0.379]
[1659262614229,0.55202427,23765.0,23764.0,0.68269]
[1659262614439,0.55202427,23765.0,23764.0,0.379]
[1659262614659,0.53222427,23765.0,23764.0,0.379]
[1659262614915,0.53222427,23765.0,23764.0,0.68269]
[1659262615362,0.53222427,23765.0,23764.0,0.65376753]
[1659262615576,0.53222427,23765.0,23764.0,0.35007753]
[1659262615797,0.53222427,23765.0,23764.0,0.65376753]
[1659262616029,0.53222427,23765.0,23764.0,0.42907753]
[1659262616719,0.53222427,23765.0,23764.0,0.73276753]
[1659262616946,0.53222427,23765.0,23764.0,0.42907753]
[1659262617158,0.53222427,23765.0,23764.0,0.12907753]
[1659262617390,0.53222427,23765.0,23764.0,7.753e-05]
[1659262617611,0.00012447,23764.0,23763.0,0.50525626]
[1659262617861,0.16056638,23764.0,23763.0,0.30369]
[1659262618082,0.08005447,23764.0,23762.0,0.210295]
[1659262618303,0.08005447,23764.0,23763.0,0.30369]
[1659262618527,0.00012447,23764.0,23762.0,0.210295]
[1659262618864,0.00012447,23764.0,23763.0,0.30369]
[1659262618965,0.00012447,23764.0,23763.0,0.30385258]
[1659262619187,0.00012447,23764.0,23763.0,0.30396384]
[1659262619410,0.00012447,23764.0,23763.0,0.60396384]
[1659262619860,0.00012447,23764.0,23763.0,0.37927384]
[1659262620335,0.00012447,23764.0,23763.0,0.73296384]
[1659262620822,0.00012447,23764.0,23763.0,0.68296384]
[1659262621219,0.51384874,23765.0,23763.0,0.37927384]
[1659262621220,0.51384874,23765.0,23764.0,0.07359433]
[1659262621439,0.51384874,23765.0,23763.0,0.00027384]
[1659262621961,0.51384874,23765.0,23764.0,0.07890082]
[1659262623266,0.51384874,23765.0,23763.0,0.40027384]
[1659262623892,0.51384874,23765.0,23763.0,0.58441684]
[1659262625116,0.51384874,23765.0,23763.0,0.56941684]
[1659262625476,0.51384874,23765.0,23763.0,0.49041684]
[1659262625607,0.51384874,23765.0,23763.0,0.45541684]
[1659262626097,0.54841065,23765.0,23763.0,0.53441684]
[1659262626316,0.51384874,23765.0,23764.0,0.30369]
[1659262626536,0.51384874,23765.0,23763.0,0.48425426]
[1659262626752,0.51384874,23765.0,23764.0,0.30369]
[1659262626976,0.51384874,23765.0,23763.0,0.53425426]
[1659262627199,0.51384874,23765.0,23764.0,0.30369]
[1659262627661,0.51384874,23765.0,23764.0,0.3]
[1659262627905,0.51384874,23765.0,23764.0,0.63869]
[1659262628138,0.51384874,23765.0,23764.0,0.335]
[1659262628353,0.51384874,23765.0,23764.0,0.63869]
[1659262628803,0.51384874,23765.0,23764.0,0.335]
[1659262629034,0.51384874,23765.0,23764.0,0.035]
[1659262629275,0.51384874,23765.0,23763.0,0.45662844]
[1659262629549,0.51384874,23765.0,23764.0,0.30369]
[1659262629781,0.51384874,23765.0,23764.0,0.30388532]
[1659262630002,0.51384874,23765.0,23764.0,0.60388532]
[1659262630231,0.51384874,23765.0,23764.0,0.60369]
[1659262630917,0.51384874,23765.0,23764.0,0.60388532]
[1659262631145,0.51384874,23765.0,23764.0,0.30019532]
[1659262631356,0.51384874,23765.0,23764.0,0.35019532]
[1659262631858,0.51384874,23765.0,23764.0,0.65388532]
[1659262632091,0.51384874,23765.0,23764.0,0.73288532]
[1659262632326,0.51384874,23765.0,23764.0,0.42919532]
[1659262632555,0.51384874,23765.0,23764.0,0.43288532]
[1659262632779,0.51384874,23765.0,23764.0,0.73288532]
[1659262633240,0.51384874,23765.0,23764.0,0.65388532]
[1659262633903,0.51384874,23765.0,23764.0,0.73288532]
[1659262635704,0.51384874,23765.0,23764.0,2.08288532]
[1659262636165,0.51384874,23765.0,23764.0,1.77919532]
[1659262636394,0.51384874,23765.0,23764.0,2.08288532]
[1659262636984,0.51384874,23765.0,23764.0,1.77919532]
[1659262637138,0.51384874,23765.0,23764.0,2.00388532]
[1659262637348,0.51384874,23765.0,23764.0,1.70019532]
[1659262637793,0.51384874,23765.0,23764.0,1.77919532]
[1659262637987,0.51384874,23765.0,23764.0,2.08288532]
[1659262639340,0.51384874,23765.0,23764.0,2.00388532]
[1659262640035,0.51384874,23765.0,23764.0,2.08288532]
[1659262641035,0.51384874,23765.0,23764.0,1.77919532]
[1659262641267,0.51384874,23765.0,23764.0,2.00388532]
[1659262641974,0.51384874,23765.0,23764.0,2.08288532]
[1659262643330,0.51384874,23765.0,23764.0,2.00388532]
[1659262643984,0.51384874,23765.0,23764.0,2.18645265]
[1659262644214,0.51384874,23765.0,23764.0,2.49014265]
[1659262644952,0.51384874,23765.0,23764.0,2.43994733]
[1659262645182,0.51384874,23765.0,23764.0,2.41094733]
[1659262645406,0.51384874,23765.0,23764.0,2.10725733]
[1659262645644,0.51384874,23765.0,23764.0,2.41094733]
[1659262645865,0.51384874,23765.0,23764.0,2.48994733]
[1659262646092,0.51384874,23765.0,23764.0,2.08436731]
[1659262646546,0.51384874,23765.0,23764.0,1.73067731]
[1659262646765,0.51378721,23765.0,23764.0,2.08436731]
[1659262647248,0.51378721,23765.0,23764.0,2.00536731]
[1659262647919,0.51378721,23765.0,23764.0,1.78067731]
[1659262648147,0.51378721,23765.0,23764.0,2.20057812]
[1659262648377,0.51378721,23765.0,23764.0,2.50426812]
[1659262649319,0.51378721,23765.0,23764.0,2.42526812]
[1659262649994,0.51378721,23765.0,23764.0,2.50426812]
[1659262650663,0.51378721,23765.0,23764.0,2.45426812]
[1659262651133,0.51378721,23765.0,23764.0,2.20057812]
[1659262651361,0.51378721,23765.0,23764.0,2.42526812]
[1659262652030,0.51378721,23765.0,23764.0,2.50426812]
[1659262653228,0.51378721,23765.0,23764.0,2.42526812]
[1659262653930,0.51378721,23765.0,23764.0,2.50426812]
[1659262655069,0.00099303,23766.0,23765.0,0.00963742]
[1659262655299,0.0022,23770.0,23769.0,0.07359433]
[1659262655300,0.00089882,23770.0,23769.0,0.07359433]
[1659262655534,0.0022,23774.0,23770.0,0.4]
[1659262655773,0.0022,23774.0,23772.0,0.07359433]
[1659262656010,0.0022,23774.0,23772.0,0.37728433]
[1659262656297,0.0022,23774.0,23772.0,0.77728433]
[1659262656525,0.00406633,23773.0,23772.0,1.06720032]
[1659262656755,0.00271666,23773.0,23772.0,1.06720032]
[1659262656995,0.00271666,23773.0,23772.0,0.67728433]
[1659262657215,0.00271666,23773.0,23772.0,0.77728433]
[1659262657430,0.00271666,23773.0,23772.0,0.47359433]
[1659262657680,0.00271666,23773.0,23772.0,0.17359433]
[1659262657900,0.00271666,23773.0,23772.0,0.52459433]
[1659262658125,0.00271666,23773.0,23772.0,0.42459433]
[1659262658344,0.00271666,23773.0,23772.0,0.47627164]
[1659262658803,0.00271666,23773.0,23772.0,0.52627164]
[1659262659057,0.00271666,23773.0,23772.0,0.12470559]
[1659262659283,0.00271666,23773.0,23772.0,0.07370559]
[1659262659964,0.00271666,23773.0,23772.0,0.12470559]
[1659262660244,0.00271666,23773.0,23772.0,0.42839559]
[1659262660695,0.00271666,23773.0,23772.0,0.72839559]
[1659262661153,0.00271666,23773.0,23772.0,0.7408411]
[1659262661387,0.00271666,23773.0,23772.0,0.38758428]
[1659262661615,0.00271666,23773.0,23772.0,0.31398995]
[1659262661841,0.00271666,23773.0,23772.0,0.00143318]
[1659262662064,0.00271666,23773.0,23772.0,0.05243318]
[1659262663222,0.00271666,23773.0,23772.0,0.00143318]
[1659262663999,0.00271666,23773.0,23772.0,0.06443318]
[1659262665281,0.00271666,23773.0,23772.0,0.00143318]
[1659262665505,0.00271666,23773.0,23772.0,0.34012318]
[1659262665740,0.00271666,23773.0,23772.0,0.3]
[1659262665942,0.00271666,23773.0,23772.0,0.40540118]
[1659262666175,0.00271666,23773.0,23772.0,0.23044793]
[1659262666398,0.00271666,23773.0,23772.0,0.303432]
[1659262666787,0.00271666,23773.0,23772.0,0.0013963]
[1659262666986,0.00271666,23773.0,23772.0,0.3048283]
[1659262667376,0.00271666,23773.0,23772.0,0.0013963]
[1659262667759,0.00271666,23773.0,23771.0,0.01243193]
[1659262668016,0.08071666,23773.0,23771.0,0.31586393]
[1659262668212,0.08071666,23773.0,23772.0,0.72702633]
[1659262668431,0.08071666,23773.0,23772.0,0.47359433]
[1659262668648,0.08071666,23773.0,23772.0,0.17359433]
[1659262669221,0.00271666,23773.0,23772.0,0.47702633]
[1659262669455,0.00271666,23773.0,23772.0,0.47359433]
[1659262669854,0.06371666,23773.0,23772.0,0.77702633]
[1659262670151,0.06371666,23773.0,23772.0,0.47359433]
[1659262670412,0.06371666,23773.0,23772.0,0.77702633]
[1659262670585,0.06371666,23773.0,23772.0,0.47359433]